{"text_format":"1","workbook":"xlsx","n_sheets":3,"sheets":["Relación de gastos","Relación de ingresos ","Gastos e ingresos"],"not_rendered":{"charts":0,"images":3,"macros":1,"external_links":0,"defined_names":8,"comments":3,"pivot_tables":0},"unopened":[],"bounds":{"document_bytes":16777216,"sheet_cells":100000,"rows_first":2000,"rows_last":500,"rows_between":2000,"halvings":0,"cell_chars":16384,"cell_head_chars":4096},"cells_cut":0,"cells_raw":0,"read":"whole","date_system":"1900"}

{"sheet":"Relación de gastos","index":0,"n_rows":150,"n_cols":10,"rows_kept":150,"cut":false,"hidden":false,"merged":[[110,9,110,10],[111,9,111,10],[112,9,112,10],[113,0,113,6],[125,0,125,10],[127,0,127,10],[128,0,128,10],[116,9,116,10],[117,9,117,10],[123,4,123,10],[130,0,130,10],[49,9,49,10],[48,9,48,10],[121,0,121,5],[121,9,121,10],[104,9,104,10],[105,9,105,10],[106,9,106,10],[107,0,107,6],[107,9,107,10],[92,9,92,10],[93,9,93,10],[94,9,94,10],[95,0,95,6],[95,9,95,10],[96,0,96,10],[97,9,97,10],[100,9,100,10],[101,0,101,6],[52,0,52,10],[53,9,53,10],[54,9,54,10],[55,9,55,10],[120,3,120,6],[37,9,37,10],[36,9,36,10],[70,9,70,10],[71,0,71,6],[71,9,71,10],[73,9,73,10],[74,9,74,10],[129,0,129,10],[56,9,56,10],[57,0,57,6],[57,9,57,10],[101,9,101,10],[113,9,113,10],[114,0,114,10],[115,9,115,10],[102,0,102,10],[103,9,103,10],[108,0,108,10],[109,9,109,10],[118,9,118,10],[119,0,119,6],[119,9,119,10],[120,0,120,2],[120,9,120,10],[99,9,99,10],[84,0,84,10],[85,9,85,10],[86,9,86,10],[87,9,87,10],[88,9,88,10],[89,0,89,6],[89,9,89,10],[90,0,90,10],[91,9,91,10],[98,9,98,10],[79,9,79,10],[80,9,80,10],[81,9,81,10],[82,9,82,10],[83,0,83,6],[83,9,83,10],[38,9,38,10],[18,9,18,10],[42,9,42,10],[45,0,45,6],[58,0,58,2],[58,3,58,6],[58,9,58,10],[60,0,60,10],[65,0,65,6],[65,9,65,10],[67,9,67,10],[68,9,68,10],[61,9,61,10],[66,0,66,10],[64,9,64,10],[69,9,69,10],[45,9,45,10],[44,9,44,10],[7,3,7,4],[15,9,15,10],[9,0,9,10],[76,9,76,10],[72,0,72,10],[77,0,77,6],[77,9,77,10],[78,0,78,10],[43,9,43,10],[59,0,59,10],[20,9,20,10],[21,0,21,6],[21,9,21,10],[22,0,22,10],[23,9,23,10],[46,0,46,10],[34,0,34,10],[40,0,40,10],[24,9,24,10],[25,9,25,10],[26,9,26,10],[27,0,27,6],[27,9,27,10],[31,9,31,10],[75,9,75,10],[0,0,0,10],[4,0,4,1],[15,0,15,6],[2,2,2,3],[3,2,3,3],[4,2,4,3],[11,9,11,10],[2,0,2,1],[2,4,2,6],[3,4,3,6],[4,4,4,6],[7,2,8,2],[2,7,2,8],[3,7,3,8],[4,7,4,8],[3,0,3,1],[7,1,8,1],[7,0,8,0],[6,0,6,4],[7,9,7,10],[8,9,8,10],[10,0,10,10],[14,9,14,10],[143,0,143,7],[144,0,144,7],[145,0,145,7],[146,0,146,7],[147,0,147,7],[148,0,148,7],[149,0,149,7],[12,9,12,10],[16,0,16,10],[17,9,17,10],[47,9,47,10],[51,9,51,10],[50,9,50,10],[33,0,33,6],[39,0,39,6],[28,0,28,10],[30,9,30,10],[29,9,29,10],[51,0,51,6],[33,9,33,10],[32,9,32,10],[41,9,41,10],[39,9,39,10],[35,9,35,10],[134,0,134,7],[135,0,135,7],[136,0,136,7],[137,0,137,7],[138,0,138,7],[139,0,139,7],[140,0,140,7],[141,0,141,7],[142,0,142,7]]}
["Relación clasificada de todos los gastos realizados para la ejecución de la actividad subvencionada"]
[]
["Persona física/jurídica beneficiaria:         ",null,null,null,"Importe del coste total del proyecto:",null,null,null,null,"euros"]
["Código de subvención:",null,null,null,"Importe de la subvención otorgada:",null,null,null,null,"euros"]
["Nombre del proyecto subvencionado:",null,null,null,"Periodo de ejecución del proyecto subvencionado:",null,null,null,null,"a"]
[]
["Gastos del proyecto/actividad/servicio subvencionado (*)"]
["Núm. De orden (0)","Número de documento: justificantes gasto personal (1), factura o recibo/ticket(2)","Concepto de la factura /\ndocumento probatorio equivalente","Emisor/a de la factura",null,"Fecha de emisión","Importe total de la factura","Importe imputable (dedicado) al proyecto (3)","Importe imputable a la subvención municipal (4)","Observaciones"]
[null,null,null,"NIF","Nombre","dd/mm/aaaa","euros","euros","euros"]
["GASTOS DIRECTOS (Aquellos que se identifican directamente con el proyecto)"]
["D1. Retribuciones y seguridad social (régimen general o régimen de autónomos) del personal propio vinculado/da al proyecto (máximo 25% subvención)"]
[]
[]
[]
[]
["Subtotal D1",null,null,null,null,null,null,{"$f":"SUM(H13:H15)","v":0},{"$f":"SUM(I12:I15)","v":0},{"$f":"IF(I16<=H4*0.25,\"\",\"Error: D1 no puede superar el 25% de la subvención\")","v":""}]
["D2. Trabajos realizados por profesionales y empresas externas directamente vinculadas al acompañamiento de procesos de la organización y con sus asociadas"]
[]
[]
[]
[]
["Subtotal D2",null,null,null,null,null,null,{"$f":"SUM(H18:H21)","v":0},{"$f":"SUM(I18:I21)","v":0}]
["D3. Alquiler de bienes inmuebles directamente vinculados al proyecto"]
[]
[]
[]
[]
["Subtotal D3",null,null,null,null,null,null,{"$f":"SUM(H24:H27)","v":0},{"$f":"SUM(I24:I27)","v":0}]
["D4.  Adquisición de materiales y bienes consumibles íntegramente imputables al proyecto "]
[]
[]
[]
[]
["Subtotal D4",null,null,null,null,null,null,{"$f":"SUM(H30:H33)","v":0},{"$f":"SUM(I30:I33)","v":0}]
["D5.  Publicidad y propaganda de las actividades directamente vinculadas al proyecto"]
[]
[]
[]
[]
["Subtotal D5",null,null,null,null,null,null,{"$f":"SUM(H36:H39)","v":0},{"$f":"SUM(I36:I39)","v":0}]
["D6.  Viajes y desplazamientos imputables a las actividades del proyecto (máx. 10% subvención)"]
[]
[]
[]
[]
["Subtotal D6",null,null,null,null,null,null,{"$f":"SUM(H42:H45)","v":0},{"$f":"SUM(I42:I45)","v":0},{"$f":"IF(I46<=H4*0.1,\"\",\"Error: D6 no puede superar el 10% de la subvención\")","v":""}]
["D7.  Gastos del informe de auditoría (máx. 1.500€ subvención)"]
[]
[]
[]
[]
["Subtotal D7",null,null,null,null,null,null,{"$f":"SUM(H48:H51)","v":0},{"$f":"SUM(I48:I51)","v":0},{"$f":"IF(I52<=1500,\"\",\"Error: D7 no puede superar los 1.500,00€\")","v":""}]
["D8.  Otros gastos que de forma justificada puedan imputarse directamente al proyecto"]
[]
[]
[]
[]
["Subtotal D8",null,null,null,null,null,null,{"$f":"SUM(H54:H57)","v":0},{"$f":"SUM(I54:I57)","v":0}]
["TOTAL GASTOS DIRECTOS",null,null,"TOTAL GASTOS DIRECTOS",null,null,null,{"$f":"+H16+H22+H28+H34+H40+H46+H52+H58","v":0},{"$f":"+I16+I22+I28+I34+I40+I46+I52+I58","v":0}]
["GASTOS INDIRECTOS (no se pueden asignar directamente al proyecto sin utilizar algún % de asignación) (máximo 10% subvención)"]
["I.1 Personal de apoyo al proyecto (Nóminas y seguridad social)"]
[]
[]
[]
[]
["Subtotal I1",null,null,null,null,null,null,{"$f":"SUM(H62:H65)","v":0},{"$f":"SUM(I62:I65)","v":0}]
["I.2  Seguros"]
[]
[]
[]
[]
["Subtotal I2",null,null,null,null,null,null,{"$f":"SUM(H68:H71)","v":0},{"$f":"SUM(I68:I71)","v":0}]
["I.3  Amortización"]
[]
[]
[]
[]
["Subtotal I3",null,null,null,null,null,null,{"$f":"SUM(H74:H77)","v":0},{"$f":"SUM(I74:I77)","v":0}]
["I.4  Alquiler de bienes inmuebles"]
[]
[]
[]
[]
["Subtotal I4",null,null,null,null,null,null,{"$f":"SUM(H80:H83)","v":0},{"$f":"SUM(I80:I83)","v":0}]
["I.5  Adquisición de materiales y bienes consumibles parcialmente imputables al proyecto"]
[]
[]
[]
[]
["Subtotal I5",null,null,null,null,null,null,{"$f":"SUM(H86:H89)","v":0},{"$f":"SUM(I86:I89)","v":0}]
["I.6  Mantenimiento de edificios y/o instalaciones"]
[]
[]
[]
[]
["Subtotal I6",null,null,null,null,null,null,{"$f":"SUM(H92:H95)","v":0},{"$f":"SUM(I92:I95)","v":0}]
["I.7  Comunicaciones (teléfono, correos, conexión a internet)"]
[]
[]
[]
[]
["Subtotal I7",null,null,null,null,null,null,{"$f":"SUM(H98:H101)","v":0},{"$f":"SUM(I98:I101)","v":0}]
["I.8  Gastos financieros"]
[]
[]
[]
[]
["Subtotal I8",null,null,null,null,null,null,{"$f":"SUM(H104:H107)","v":0},{"$f":"SUM(I104:I107)","v":0}]
["I.9  Suministros"]
[]
[]
[]
[]
["Subtotal I9",null,null,null,null,null,null,{"$f":"SUM(H110:H113)","v":0},{"$f":"SUM(I110:I113)","v":0}]
["I.10  Trabajo realizado por otras empresas, parcialmente imputables al proyecto (limpieza, seguridad...)"]
[]
[]
[]
[]
["Subtotal I10",null,null,null,null,null,null,{"$f":"SUM(H116:H119)","v":0},{"$f":"SUM(I116:I119)","v":0}]
["TOTAL GASTOS INDIRECTOS",null,null,"TOTAL GASTOS INDIRECTOS",null,null,null,{"$f":"+H66+H72+H78+H84+H90+H96+H102+H108+H114+H120","v":0},{"$f":"+I66+I72+I78+I84+I90+I96+I102+I108+I114+I120","v":0},{"$f":"IF(I121<=H4*0.1,\"\",\"Error: Gastos indirectos no pueden superar el 10% de la subvención\")","v":""}]
["TOTAL GASTOS",null,null,null,null,null,"TOTAL",{"$f":"H59+H121","v":0},{"$f":"I59+I121","v":0}]
[]
[]
["Notas:"]
["(*) Se deben relacionar todos los gastos del proyecto/actividad/servicio subvencionado. En caso de que el número de filas de cada concepto sea insuficiente puede insertar líneas dentro del mismo concepto seleccionando una celda verde y haciendo clic sobre el botón de insertar línea."]
["(0) El número de orden debe ser correlativo empezando por D.1.1, D1.2, D.1.3, D2.4, etc."]
["(1) Respecto a los gastos de recursos humanos, puede ser subvencionable el coste total salarial mensual, que corresponde a la suma de la retribución bruta que aparece en la nómina del trabajador/a más la cuota de la empresa a la Seg. Social. Los gastos de personal se justifican con la nómina del trabajador/a acompañada de los correspondientes RLC y RNT (anteriores TC1 y TC2) de la TGSS y el modelo 111 del IRPF."]
["(2) En caso de que el documento justificativo del resto de gastos, no sea una factura, sino otro documento probatorio equivalente, como un recibo o justificante (como por dietas o transporte público), indíquelo en la columna \"observaciones\" \""]
["(3) En caso de que un justificante incluya conceptos que no tienen relación con el proyecto/actividad/servicio para el que se ha otorgado la subvención, aquí sólo se tiene que indicar la parte que realmente se ha dedicado al proyecto ."]
["(4) En esta columna debe indicarse el importe total o parcial de la factura que se imputa a la subvención recibida del Ayuntamiento de Barcelona. El total imputado, en esta columna, debe ser igual al importe de la subvención recibida."]
[]
["Pulsa el icono para generar un documento PDF del libro"]
[]
["Modalidad Ba. Intercooperación de 2º y mayor nivel: Proyectos promovidos por organizaciones de la ESS o de las finanzas éticas de segundo y superior nivel, que contribuyan al despliegue de la Estrategia #ESSBCN2030 de Barcelona, y tengan por destinatarias a sus organizaciones socias"]
["1. La cuantía de la subvención otorgada no superará el 80% del gasto total del proyecto a subvencionar."]
["2. El importe máximo de subvención para la modalidad \"a\" del ámbito temático B de Intercooperación (Ba) es 35.000 €."]
["3. En caso de que la solicitud presentada sobrepase el importe máximo, se considerará como importe solicitado el máximo de lo establecido en la convocatoria."]
["4. Se limita con un máximo del 25% el importe de la subvención para gastos de personal propio asignado al proyecto subvencionado (retribuciones y seguridad social- régimen general o autónomos)."]
["5. Son imputables en esta modalidad los gastos indirectos, detallados en el apartado 13.3. de las bases reguladoras; con un máximo del 10% del importe de la subvención.\nEl carácter subvencionable del gasto de amortización estará sujeto a las siguientes condiciones:\n> Que las subvenciones no hayan contribuido a la compra de los bienes.\n> Que la amortización se calcule de conformidad con las normas de contabilidad generalmente aceptadas.\n> Que el coste se refiera al período subvencionable.\n\n"]
["6. Cuando se tenga que realizar gastos de más de 12.000 €, sin IVA, en el caso de prestaciones de servicios o entrega de bienes y por aquellos gastos de más de 30.000 €, sin IVA, en el caso de ejecución de obras, se tendrán que incorporar tres presupuestos solicitados y argumentar el motivo de la adjudicación en caso de no ser la propuesta más ventajosa económicamente."]
["7. Por las subvenciones otorgadas por importe igual o superior a 20.000 € es necesario un informe de auditoría para la justificación. El importe de este informe se considera gasto subvencionable, con un límite máximo de 1.500 €."]
["8. En ningún caso se considerarán gastos subvencionables:\n> Los impuestos indirectos cuando sean susceptibles de recuperación o compensación.\n> Los gastos de inversión, incluidas las adquisiciones de bienes muebles.\n> Los gastos realizados con fecha anterior al inicio del proyecto y fecha posterior a la finalización del proyecto.\n> Otros gastos que se indiquen en la convocatoria."]
["9. La retribución de las personas contratadas en el marco del proyecto subvencionado no puede ser inferior al Salario Mínimo Interprofesional (SMI), ni a la estipulada en el correspondiente convenio o marco normativo de referencia (punto 7 de las bases 2023: requisitos de los proyectos )."]
["10. Los materiales producidos de difusión, estudios, informes o materiales didácticos utilizados, etc. en el caso de tratarse de gasto elegible de la subvención, tendrán que tener licencia Creative Commons -Compartir Igual- (share a like) y no podrá tener la condición -Sin Obras Derivadas- (no derivate Works)."]
["11. Los proyectos subvencionados deben fomentar actividades de interés público o social, las cuales deben ser gratuitas para las personas participantes o en ningún caso el precio debe suponer un obstáculo para su participación, buscando otras formas de acceso personas con dificultades económicas. En caso de que haya algún tipo de lucro, deberá revertir en las propias actividades subvencionadas."]
["12. El Ayuntamiento de Barcelona y sus entidades municipales en ningún caso subvencionarán el mismo proyecto, ejecutado durante el mismo período, por ningún otro procedimiento de concesión que no sea el regulado por las bases reguladoras."]
["13. El/la beneficiario/a no podrá alterar en ningún caso el destino de las subvenciones concedidas."]
["14. La organización designada como representante de la agrupación será plenamente responsable del proyecto ante el Ayuntamiento respecto al cumplimiento de las obligaciones establecidas en las bases reguladoras, sin perjuicio de la responsabilidad de las demás organizaciones socias de la agrupación, todo siéndole de aplicación los requisitos previstos en el punto 6.1 de las bases reguladoras."]
["15. En ningún caso podrán formar parte de la agrupación las organizaciones que hayan recibido otras subvenciones para la ejecución del propio proyecto de otras administraciones públicas."]

{"sheet":"Relación de ingresos ","index":1,"n_rows":71,"n_cols":10,"rows_kept":71,"cut":false,"hidden":false,"merged":[[50,0,50,3],[12,6,12,9],[24,6,24,9],[48,6,48,9],[19,6,19,9],[18,6,18,9],[17,6,17,9],[16,6,16,9],[34,6,34,9],[44,6,44,9],[43,6,43,9],[42,6,42,9],[14,6,14,9],[20,6,20,9],[29,6,29,9],[28,6,28,9],[44,0,44,3],[26,0,26,3],[50,6,50,9],[49,6,49,9],[20,0,20,3],[45,0,45,9],[47,6,47,9],[46,6,46,9],[26,6,26,9],[25,6,25,9],[23,6,23,9],[22,6,22,9],[36,6,36,9],[35,6,35,9],[41,6,41,9],[40,6,40,9],[39,0,39,9],[38,0,38,3],[32,0,32,3],[37,6,37,9],[30,6,30,9],[32,6,32,9],[31,6,31,9],[38,6,38,9],[7,2,7,3],[7,1,8,1],[14,0,14,3],[27,0,27,9],[33,0,33,9],[66,0,66,3],[65,0,65,3],[65,6,65,9],[0,0,0,9],[9,0,9,9],[15,0,15,9],[21,0,21,9],[7,6,8,9],[10,6,10,9],[11,6,11,9],[7,0,8,0],[13,6,13,9],[3,2,3,3],[2,2,2,3],[6,0,6,3],[4,2,4,3],[51,0,51,9],[57,0,57,9],[56,6,56,9],[58,6,58,9],[56,0,56,3],[53,6,53,9],[52,6,52,9],[64,6,64,9],[59,6,59,9],[66,6,66,9],[60,6,60,9],[61,6,61,9],[62,6,62,9],[63,6,63,9]]}
["Detalle de todos los ingresos obtenidos y aportaciones del propio beneficiario para la ejecución de la actividad subvencionada"]
[]
[null,"Nombre de la persona física/jurídica beneficiaria:        ",{"$f":"IF('Relación de gastos'!C3:D3<>\"\",'Relación de gastos'!C3:D3,\"\")","v":""},null,"Importe del coste total del proyecto:",null,null,{"$f":"IF(+'Relación de gastos'!H3=\"\",\"\",+'Relación de gastos'!H3)","v":""},"euros"]
[null,"Código de subvención",{"$f":"IF('Relación de gastos'!C4:D4<>\"\",'Relación de gastos'!C4:D4,\"\")","v":""},null,"Importe de la subvención otorgada:",null,null,{"$f":"IF(+'Relación de gastos'!H4=\"\",\"\",+'Relación de gastos'!H4)","v":""},"euros"]
[null,"Nombre del proyecto subvencionado",{"$f":"IF('Relación de gastos'!C5:D5<>\"\",'Relación de gastos'!C5:D5,\"\")","v":""},null,"Periodo de ejecución del proyecto subvencionado:",null,null,{"$f":"IF(+'Relación de gastos'!H5=\"\",\"\",+'Relación de gastos'!H5)","v":""},"a",{"$f":"IF(+'Relación de gastos'!K5=\"\",\"\",+'Relación de gastos'!K5)","v":""}]
[]
["Ingresos del proyecto/actividad/servicio subvencionado"]
["núm. De orden (0)","Concepto del ingreso","Emisor/a del ingreso",null,"Fecha de cobro\n(dd/mm/aaaa)","Importe","Observaciones"]
[null,null,"NIF","Nombre","(1)","euros"]
["A. Subvención municipal "]
[]
[]
[]
[]
[null,null,null,null,"Subtotal A",{"$f":"SUM(F11:F14)","v":0}]
["B. Subvenciones de otras administraciones"]
[]
[]
[]
[]
[null,null,null,null,"Subtotal B",{"$f":"SUM(F17:F20)","v":0}]
["C. Subvenciones de entes privados"]
[]
[]
[]
[]
[null,null,null,null,"Subtotal C",{"$f":"SUM(F23:F26)","v":0}]
["D. Recursos propios de la organización aplicados al proyecto"]
[]
[]
[]
[]
[null,null,null,null,"Subtotal D",{"$f":"SUM(F29:F32)","v":0}]
["E. Taquillaje"]
[]
[]
[]
[]
[null,null,null,null,"Subtotal E",{"$f":"SUM(F35:F38)","v":0}]
["F. Cuotas de inscripción"]
[]
[]
[]
[]
[null,null,null,null,"Subtotal F",{"$f":"SUM(F41:F44)","v":0}]
["G. Venta de Productos"]
[]
[]
[]
[]
[null,null,null,null,"Subtotal G",{"$f":"SUM(F47:F50)","v":0}]
["H. Publicidad y/o Esponsorización"]
[]
[]
[]
[]
[null,null,null,null,"Subtotal H",{"$f":"SUM(F53:F56)","v":0}]
["I. Otros ingresos"]
[]
[]
[]
[]
[]
[]
[]
[null,null,null,null,"Subtotal I",{"$f":"SUM(F59:F65)","v":0}]
["Total INGRESOS",null,null,null,"TOTAL",{"$f":"+F15+F21+F27+F33+F39+F45+F51+F57+F66","v":0}]
[]
[null,"Nota:"]
[null,"(0) El número de orden debe ser correlativo empezando por el número A1, A2, A3, B4, etc."]
[null,"(1) En caso de que el ingreso esté pendiente cobro, indicar \"P. Cobro\""]

{"sheet":"Gastos e ingresos","index":2,"n_rows":45,"n_cols":11,"rows_kept":45,"cut":false,"hidden":false,"merged":[[27,8,27,9],[10,9,11,9],[10,0,11,1],[10,2,11,2],[10,3,11,3],[10,6,11,7],[10,8,11,8],[27,6,27,7],[22,0,23,1],[26,6,26,7],[35,7,36,10],[44,0,44,10],[43,0,43,10],[38,0,38,10],[39,0,39,10],[40,0,40,10],[41,0,41,10],[42,0,42,10],[4,0,4,1],[4,2,4,3],[4,5,4,6],[5,0,5,1],[5,2,5,3],[5,5,5,6],[6,0,6,1],[6,2,6,3],[9,0,9,1],[9,6,9,7],[22,2,23,2],[22,3,23,3]]}
[]
[]
["Estado de los gastos realizados y de los ingresos obtenidos para la ejecución de la actividad subvencionada (*)"]
[]
["Nombre de la persona física/jurídica beneficiaria:        ",null,{"$f":"IF('Relación de gastos'!C3:D3<>\"\",'Relación de gastos'!C3:D3,\"\")","v":""},null,null,"Importe del coste total del proyecto:",null,{"$f":"'Relación de ingresos '!H3","v":""},"euros"]
["Código de subvención:",null,{"$f":"IF('Relación de gastos'!C4:D4<>\"\",'Relación de gastos'!C4:D4,\"\")","v":""},null,null,"Importe de la subvención otorgada:",null,{"$f":"'Relación de ingresos '!H4","v":""},"euros"]
["Nombre del proyecto subvencionado:",null,{"$f":"IF('Relación de gastos'!C5:D5<>\"\",'Relación de gastos'!C5:D5,\"\")","v":""},null,null,"Periodo de ejecución del proyecto subvencionado:",null,null,{"$f":"'Relación de ingresos '!H5","v":""},"a",{"$f":"'Relación de ingresos '!J5","v":""}]
[]
["SUBVENCIONES PARA EL FORTALECIMIENTO DE LA ECONOMÍA SOCIAL Y SOLIDARIA Y LA INTERCOOPERACIÓN 2023"]
["GASTOS PREVISTOS",null,"importe en euros",null,null,null,"INGRESOS PREVISTOS",null,"importe en euros"]
["Gastos directos\n(aquellas que se identifican directamente con el proyecto)",null,"Previsión inicial o reformulada ya aprobada (1)","Gastos realizados (2)","Diferencia\n",null,"Ingresos previstos",null,"Previsión inicial (1)","Ingresos obtenidos (3)"]
[null,null,null,null,"(2-1)"]
[null,"D1. Retribuciones y seguridad social (régimen general o régimen de autónomos) del personal propio vinculado/da al proyecto (máximo 25% subvención)",null,{"$f":"'Relación de gastos'!H16","v":0},{"$f":"+C13-D13","v":0},null,"A.","Subvención municipal (importe solicitado a la instancia/otorgado)",null,{"$f":"'Relación de ingresos '!F15","v":0}]
[null,"D2.  Trabajos realizados por profesionales y empresas externas directamente vinculadas al acompañamiento de procesos de la organización y con sus asociadas",null,{"$f":"'Relación de gastos'!H22","v":0},0,null,"B.","Subvenciones de otras administraciones",null,{"$f":"'Relación de ingresos '!F21","v":0}]
[null,"D3.  Alquiler de bienes inmuebles directamente vinculados al proyecto subvencionable",null,{"$f":"'Relación de gastos'!H28","v":0},{"$f":"+C15-D14","v":0},null,"C.","Subvenciones de entes privados",null,{"$f":"'Relación de ingresos '!F27","v":0}]
[null,"D4.  Adquisición de materiales y bienes consumibles íntegramente vinculados al proyecto subvencionable",null,{"$f":"'Relación de gastos'!H34","v":0},{"$f":"+C16-D15","v":0},null,"D.","Recursos propios de la entidad aplicados al proyecto",null,{"$f":"'Relación de ingresos '!F33","v":0}]
[null,"D5.  Publicidad y propaganda de las actividades directamente vinculadas al proyecto subvencionable",null,{"$f":"'Relación de gastos'!H40","v":0},{"$f":"+C17-D16","v":0},null,"E.","Taquillaje",null,{"$f":"'Relación de ingresos '!F39","v":0}]
[null,"D6.  Viajes y desplazamientos imputables a las actividades del proyecto subvencionable (Máx. 10% subvención)",null,{"$f":"'Relación de gastos'!H46","v":0},{"$f":"+C18-D17","v":0},null,"F.","Cuotas de inscripción",null,{"$f":"'Relación de ingresos '!F45","v":0}]
[null,"D7.  Gastos del informe de auditoría (máx. 1.500€ subvención)",null,{"$f":"'Relación de gastos'!H52","v":0},{"$f":"+C19-D18","v":0},null,"G.","Venta de Productos",null,{"$f":"'Relación de ingresos '!F51","v":0}]
[null,"D8.  Otros gastos que de forma justificada puedan imputarse directamente al proyecto subvencionable",null,{"$f":"'Relación de gastos'!H58","v":0},{"$f":"C20-D19","v":0},null,"H","Publicidad y/o Esponsorización",null,{"$f":"'Relación de ingresos '!F57","v":0}]
[null,null,null,null,null,null,"I.","Otros ingresos",null,{"$f":"'Relación de ingresos '!F66","v":0}]
[null,"Total Gastos Directos  ",{"$f":"SUM(C13:C21)","v":0},{"$f":"SUM(D13:D20)","v":0},{"$f":"SUM(E13:E21)","v":0},null,null,"Total Ingresos",{"$f":"SUM(I13:I21)","v":0},{"$f":"SUM(J13:J21)","v":0}]
["Gastos indirectos (se podrán asignar al proyecto utilizando un porcentaje de asignación)",null,"Previsión inicial o reformulada ya aprobada (1)","Gastos realizados (2)","Diferencia\n"]
[null,null,null,null,"(2-1)"]
[null,"I.1 Personal de apoyo al proyecto (Nóminas y seguridad social)",null,{"$f":"'Relación de gastos'!H66","v":0},{"$f":"+C25-D25","v":0}]
[null,"I.2  Seguros",null,{"$f":"'Relación de gastos'!H72","v":0},0]
[null,"I.3  Amortización",null,{"$f":"'Relación de gastos'!H78","v":0},0,null,"Ingresos menos gastos",null,{"$f":"+I22-C36","v":0},{"$f":"+J22-D36","v":0}]
[null,"I.4  Alquiler de bienes inmuebles",null,{"$f":"'Relación de gastos'!H84","v":0},0,null,"Desviación de Gastos(4)",null,"Desviación de ingresos (4)"]
[null,"I.5  Adquisición de materiales y bienes consumibles parcialmente imputables al proyecto",null,{"$f":"'Relación de gastos'!H90","v":0},0,null,"Importe"," % ","Importe","%"]
[null,"I.6  Mantenimiento de edificios y/o instalaciones",null,{"$f":"'Relación de gastos'!H96","v":0},0,null,{"$f":"D36-C36","v":0},{"$f":"D36/C36","v":{"$error":"#DIV/0!"}},{"$f":"J22-I22","v":0},{"$f":"J22/I22","v":{"$error":"#DIV/0!"}}]
[null,"I.7  Comunicaciones (teléfono, correos, conexión a internet)",null,{"$f":"'Relación de gastos'!H102","v":0},0,null,null,null,"% subvencionado inicialmente o después de reformulación (5)",{"$f":"I13/I22","v":{"$error":"#DIV/0!"}}]
[null,"I.8  Gastos financieros",null,{"$f":"'Relación de gastos'!H108","v":0},0,null,null,null,"% subvencionado después de justificación (6)",{"$f":"+J13/J22","v":{"$error":"#DIV/0!"}}]
[null,"I.9  Suministros",null,{"$f":"'Relación de gastos'!H114","v":0},0]
[null,"I.10  Trabajo realizado por otras empresas, parcialmente imputables al proyecto (limpieza, seguridad...)",null,{"$f":"'Relación de gastos'!H120","v":0},0]
[null,"Total Gastos Indirectos   (Max. 10% subv)",{"$f":"SUM(C25:C34)","v":0},{"$f":"SUM(D25:D34)","v":0},{"$f":"SUM(E25:E34)","v":0}]
[null,"Total Gastos",{"$f":"C22+C35","v":0},{"$f":"D22+D35","v":0},{"$f":"E22+E35","v":0}]
[]
["Notas:"]
["(*) Las columnas sombreadas en color se irán rellenando automáticamente a partir de los datos introducidos en los documentos de gastos -detalle e ingresos-detalle. Por tanto, no imprima esta hoja hasta haber rellenado los demás."]
["(1) Previsión inicial o reformulación ya aprobada = Se debe indicar la previsión inicial de gastos y de ingresos según lo indicado en el proyecto original en el \"plan de viabilidad económica del proyecto - presupuesto general\" . En caso de que ya se haya aprobado una reformulación, deben indicarse las cantidades reformuladas."]
["(2) Gastos reales = Coste real total del proyecto subvencionado. Automáticamente se introducirán los subtotales de los gastos relacionados en la hoja Gastos-detalle."]
["(3) Ingresos reales = Total de ingresos obtenidos para la realización del proyecto subvencionado. Automáticamente se introducirán los subtotales de los ingresos relacionados en la hoja Ingresos-detalle"]
["(4) Desviación: En el caso de los gastos, la desviación es la diferencia entre gastos reales y la previsión inicial de gastos; y en el caso de ingresos, la diferencia entre los ingresos reales y la previsión inicial de ingresos."]
["(5) % financiación municipal inicial o después de reformulación = porcentaje que suponen las subvenciones municipales (A) respecto del total de ingresos del proyecto subvencionado."]
["(6) % financiación municipal después de justificación = porcentaje que supone la subvención municipal (A) respecto al total de ingresos del proyecto subvencionado. En caso de existir una desviación siempre debe motivarse."]